bitfinex/quotes_SOLUSD_20250507
["timestamp","ask_amount","ask_price","bid_price","bid_amount"]
[1746594784430,5.08887158,146.32,146.29,21.23843333]
[1746594785539,14.4026961,146.33,146.29,6.83573723]
[1746594786648,14.4026961,146.32,146.28,37.23873369]
[1746594788041,14.4026961,146.31,146.28,16.0]
[1746594788245,14.4026961,146.3,146.28,16.0]
[1746594788548,14.4026961,146.3,146.26,14.4026961]
[1746594788735,14.4026961,146.29,146.25,14.4026961]
[1746594789044,19.48827852,146.29,146.25,14.4026961]
[1746594789949,5.08558242,146.28,146.25,14.4026961]
[1746594790152,5.08558242,146.28,146.25,21.24022597]
[1746594790745,14.4026961,146.29,146.25,6.83752987]
[1746594791046,14.4026961,146.29,146.25,21.24022597]
[1746594791254,15.4026961,146.29,146.25,21.24022597]
[1746594794241,15.4026961,146.29,146.26,14.4026961]
[1746594794951,1.0,146.29,146.26,14.4026961]
[1746594796651,15.4026961,146.29,146.25,21.24022597]
[1746594797566,15.4026961,146.29,146.25,6.83752987]
[1746594797850,15.4026961,146.29,146.25,21.24022597]
[1746594804357,15.4026961,146.29,146.25,6.83752987]
[1746594804554,15.4026961,146.29,146.25,21.24022597]
[1746594805457,1.0,146.29,146.26,14.4026961]
[1746594805759,1.0,146.29,146.26,9.22363087]
[1746594806761,1.0,146.29,146.26,16.06062928]
[1746594807566,10.22363087,146.29,146.26,6.83699841]
[1746594808568,1.0,146.29,146.26,6.83699841]
[1746594808936,1.0,146.29,146.26,16.06062928]
[1746594811166,1.0,146.29,146.25,16.0612377]
[1746594813875,5.0818436,146.28,146.25,16.0612377]
[1746594814868,1.0,146.29,146.25,16.0612377]
[1746594815873,10.22363087,146.29,146.25,16.0612377]
[1746594816260,1.0,146.29,146.25,16.0612377]
[1746594816871,5.08711395,146.28,146.25,16.0612377]
[1746594817169,5.08711395,146.28,146.27,6.8366719]
[1746594817369,5.08711395,146.28,146.27,16.06030277]
[1746594818675,1.0,146.29,146.27,16.06030277]
[1746594818875,1.0,146.29,146.28,9.22363087]
[1746594819471,1.0,146.29,146.28,16.0598354]
[1746594822773,1.0,146.29,146.28,34.70948426]
[1746594824179,1.0,146.29,146.28,34.85164583]
[1746594825870,1.0,146.29,146.28,75.90164583]
[1746594826077,1.0,146.29,146.28,34.85164583]
[1746594827876,1.6318,146.38,146.31,26.0]
[1746594828066,9.22363087,146.36,146.32,9.22363087]
[1746594830087,9.22363087,146.36,146.32,16.05795643]
[1746594830695,6.83229411,146.37,146.32,16.05795643]
[1746594830888,16.05592498,146.37,146.33,9.22363087]
[1746594831378,6.83229411,146.37,146.33,9.22363087]
[1746594831583,16.05592498,146.37,146.33,9.22363087]
[1746594832081,9.22363087,146.36,146.33,9.22363087]
[1746594836695,16.05613957,146.36,146.33,9.22363087]
[1746594837788,9.22363087,146.36,146.33,9.22363087]
[1746594838801,16.05614236,146.36,146.33,9.22363087]
[1746594839297,16.05563196,146.37,146.33,9.22363087]
[1746594845893,9.22363087,146.36,146.32,9.22363087]
[1746594846398,16.05563196,146.37,146.32,9.22363087]
[1746594847498,9.22363087,146.36,146.32,9.22363087]
[1746594847709,9.22363087,146.34,146.3,25.12363087]
[1746594848414,9.22363087,146.34,146.3,9.22363087]
[1746594849099,9.22363087,146.34,146.27,17.5376]
[1746594849100,16.05749952,146.33,146.29,9.22363087]
[1746594849274,163.7,146.35,146.32,9.22363087]
[1746594850805,26.0,146.37,146.33,9.22363087]
[1746594851178,26.0,146.37,146.33,16.05739578]
[1746594851701,139.3318,146.38,146.35,9.22363087]
[1746594851882,139.3318,146.38,146.33,6.83376491]
[1746594852212,181.38699261,146.38,146.34,9.22363087]
[1746594852805,181.38699261,146.38,146.33,9.22363087]
[1746594852806,9.22363087,146.37,146.33,9.22363087]
[1746594853100,9.22363087,146.35,146.31,25.12363087]
[1746594853482,16.0565602,146.36,146.32,9.22363087]
[1746594853682,9.22363087,146.35,146.31,15.9]
[1746594853907,9.22363087,146.35,146.31,25.12363087]
[1746594854104,10.22363087,146.35,146.31,31.95839035]
[1746594854402,1.0,146.35,146.32,9.22363087]
[1746594855900,7.83297966,146.35,146.32,14.39974084]
[1746594856209,7.83297966,146.35,146.31,37.13450032]
[1746594856412,7.83297966,146.35,146.31,30.29974084]
[1746594857505,22.2327205,146.35,146.31,30.29974084]
[1746594859708,22.2327205,146.35,146.31,14.39974084]
[1746594861205,22.2327205,146.35,146.31,21.23450808]
[1746594861913,22.2327205,146.35,146.31,14.39974084]
[1746594862383,7.83297966,146.35,146.31,14.39974084]
[1746594862786,7.83297966,146.35,146.32,14.39974084]
[1746594863290,1.0,146.35,146.32,14.39974084]
[1746594864114,5.10301598,146.34,146.32,14.39974084]
[1746594865009,5.10301598,146.33,146.32,14.39974084]
[1746594865309,5.10301598,146.33,146.31,21.23447731]
[1746594866493,5.10301598,146.32,146.31,21.23447731]
[1746594869814,5.10301598,146.32,146.28,23.92660673]
[1746594869991,5.10301598,146.31,146.29,14.39974084]
[1746594870196,5.10301598,146.31,146.3,14.39974084]
[1746594872722,5.10301598,146.31,146.3,21.23501083]
[1746594876919,5.10301598,146.31,146.28,6.83604882]
[1746594877519,5.10301598,146.31,146.28,21.23578966]
[1746594877723,5.10301598,146.31,146.28,16.05644926]
[1746594878231,5.10301598,146.3,146.28,16.05644926]
[1746594879623,5.10301598,146.29,146.28,16.05644926]
[1746594880207,5.10301598,146.29,146.27,22.73646396]
[1746594880511,16.05490364,146.32,146.28,9.22040044]
[1746594880701,16.05490364,146.32,146.27,22.73646396]
[1746594880898,16.05490364,146.32,146.28,9.22040044]
[1746594881428,16.05490364,146.32,146.28,16.0564931]
[1746594882030,5.10253103,146.31,146.28,16.0564931]
[1746594882728,5.10253103,146.3,146.28,16.0564931]
[1746594883247,5.10253103,146.3,146.27,31.957038]
[1746594883928,5.10253103,146.29,146.27,31.957038]
[1746594884729,5.10253103,146.29,146.27,25.12040044]
[1746594885027,26.0,146.32,146.26,6.83704132]
[1746594885028,5.10253103,146.28,146.26,6.83704132]
[1746594885229,5.10253103,146.28,146.26,9.22040044]
[1746594886337,5.10253103,146.27,146.26,9.22040044]
[1746594887532,5.10253103,146.27,146.25,16.0577461]
[1746594888109,16.05584037,146.3,146.26,9.22040044]
[1746594888434,9.22040044,146.3,146.26,9.22040044]
[1746594888641,16.05551168,146.31,146.27,9.22040044]
[1746594889036,153.75551168,146.31,146.27,9.22040044]
[1746594889333,5.09780346,146.3,146.27,16.05696581]
[1746594890806,5.09780346,146.29,146.27,16.05696581]
[1746594891938,5.09780346,146.28,146.27,16.05696581]
[1746594896145,5.09780346,146.28,146.26,16.0573398]
[1746594896439,5.09780346,146.27,146.26,16.0573398]
[1746594896624,5.09780346,146.27,146.26,6.83693936]
[1746594897013,5.09780346,146.27,146.25,16.0578471]
[1746594897617,5.09780346,146.27,146.26,9.22040044]
[1746594897819,5.09780346,146.27,146.26,16.05753978]
[1746594898849,5.09780346,146.27,146.26,9.22040044]
[1746594900441,5.09780346,146.27,146.26,16.05753978]
[1746594900646,5.09780346,146.27,146.23,15.9]
[1746594900816,5.09780346,146.27,146.23,6.83832441]
[1746594900817,14.3182039,146.27,146.23,6.83832441]
[1746594901239,5.09780346,146.27,146.23,6.83832441]
[1746594901554,5.09780346,146.27,146.2,17.09975801]
[1746594901555,9.22040044,146.26,146.22,9.22040044]
[1746594901717,9.22040044,146.25,146.21,9.22040044]
[1746594902017,9.22040044,146.25,146.21,16.05983291]
[1746594902213,5.09407592,146.24,146.21,16.05983291]
[1746594902617,14.31447636,146.24,146.2,9.22040044]
[1746594902819,9.22040044,146.23,146.19,6.84013425]
[1746594903127,5.09407592,146.22,146.19,16.06053469]
[1746594904049,5.09407592,146.22,146.19,9.22040044]
[1746594904237,5.09407592,146.22,146.18,6.84051671]
[1746594904412,5.09407592,146.22,146.19,9.22040044]
[1746594904617,5.09407592,146.21,146.19,9.22040044]
[1746594905446,9.22040044,146.23,146.19,9.22040044]
[1746594905936,14.4257772,146.23,146.19,14.4257772]
[1746594906424,21.26442402,146.23,146.18,21.26629391]
[1746594906753,5.07625009,146.22,146.18,21.26629391]
[1746594907648,21.26442402,146.23,146.18,21.26629391]
[1746594907948,14.4257772,146.21,146.17,14.4257772]
[1746594908836,14.4257772,146.2,146.16,30.3257772]
[1746594909442,14.4257772,146.19,146.15,14.4257772]
[1746594909653,14.4257772,146.19,146.15,21.26797993]
[1746594909958,14.4257772,146.19,146.13,6.84322178]
[1746594910168,14.4257772,146.18,146.14,14.4257772]
[1746594911022,14.4257772,146.18,146.14,6.84256551]
[1746594911248,172.06686642,146.19,146.15,14.4257772]
[1746594911453,186.49264362,146.19,146.15,14.4257772]
[1746594911645,5.06298178,146.18,146.15,14.4257772]
[1746594912553,14.4257772,146.17,146.13,6.84306713]
[1746594912725,14.4257772,146.17,146.13,21.26884433]
[1746594914049,14.4257772,146.18,146.14,14.4257772]
[1746594914925,14.4257772,146.18,146.14,21.26841516]
[1746594915226,21.26667456,146.18,146.13,21.26886282]
[1746594916050,137.7,146.17,146.13,21.26886282]
[1746594916558,138.7,146.17,146.13,21.26886282]
[1746594917035,138.7,146.17,146.14,14.4257772]
[1746594917854,138.7,146.17,146.13,6.84308562]
[1746594918027,138.7,146.17,146.14,14.4257772]
[1746594919352,138.7,146.17,146.14,21.26826695]
[1746594922857,138.7,146.17,146.16,14.4257772]
[1746594923059,1.0,146.17,146.16,14.4257772]
[1746594923353,1.0,146.17,146.16,28.8515544]
[1746594923735,1.0,146.17,146.16,14.4257772]
[1746594924127,1.0,146.17,146.16,21.26759438]
[1746594927466,1.0,146.17,146.16,35.69337158]
[1746594931567,1.0,146.17,146.16,21.26759438]
[1746594936845,1.0,146.17,146.12,62.20824886]
[1746594937163,1.0,146.17,146.15,14.4257772]
[1746594938284,1.0,146.17,146.14,21.26811811]
[1746594941679,1.0,146.17,146.15,14.4257772]
[1746594944967,15.4257772,146.17,146.13,21.26899898]
[1746594945162,14.4257772,146.16,146.12,6.84349295]
[1746594945374,14.4257772,146.16,146.12,21.26927015]
[1746594945576,22.2672256,146.17,146.13,14.4257772]
[1746594945772,5.08947214,146.15,146.13,14.4257772]
[1746594946882,5.08947214,146.14,146.13,14.4257772]
[1746594947581,5.08947214,146.14,146.13,21.26899898]
[1746594947888,5.08947214,146.14,146.13,14.4257772]
[1746594948062,5.08947214,146.14,146.13,21.26899898]
[1746594948269,5.08947214,146.14,146.13,14.4257772]
[1746594949386,5.08947214,146.14,146.13,21.26899898]
[1746594951384,5.08947214,146.14,146.13,14.4257772]
[1746594960691,5.08947214,146.14,146.13,21.26899898]
[1746594962402,1.0,146.17,146.13,21.26899898]
[1746594962700,1.0,146.17,146.15,14.4257772]
[1746594963793,5.09172671,146.16,146.15,21.26806252]
[1746594965397,5.09172671,146.16,146.15,14.4257772]
[1746594965703,5.09172671,146.16,146.15,21.26806252]
[1746594968292,1.0,146.17,146.15,21.26806252]
[1746594968491,1.0,146.17,146.16,21.26759438]
[1746594969289,1.0,146.17,146.16,14.4257772]
[1746594969490,1.0,146.17,146.14,14.4257772]
[1746594969896,22.26714149,146.17,146.13,14.4257772]
[1746594970888,7.84136429,146.17,146.14,14.4257772]
[1746594971209,22.26714149,146.17,146.13,14.4257772]
[1746594971510,5.09689648,146.16,146.13,14.4257772]
[1746594972198,5.09689648,146.15,146.13,14.4257772]
[1746594972791,5.09689648,146.15,146.12,30.3857772]
[1746594972981,5.09689648,146.14,146.12,30.3857772]
[1746594973705,5.09689648,146.14,146.13,14.4257772]
[1746594975110,5.09689648,146.14,146.12,30.3857772]
[1746594976410,5.09689648,146.13,146.12,14.4257772]
[1746594977505,5.09689648,146.13,146.11,14.4257772]
[1746594978905,5.09689648,146.12,146.11,14.4257772]
[1746594979610,5.09689648,146.12,146.11,21.26993571]
[1746594981618,1.0,146.13,146.11,21.26993571]
[1746594981796,1.0,146.13,146.12,14.4257772]
[1746594982616,6.10885945,146.13,146.12,14.4257772]
[1746594983413,6.10885945,146.13,146.12,21.26946731]
[1746594986325,1.0,146.13,146.12,21.26946731]
[1746594988016,1.0,146.13,146.12,39.91911617]
[1746594988197,1.0,146.13,146.12,55.98127774]
[1746594989522,1.0,146.13,146.12,62.15147774]
[1746594989726,1.0,146.13,146.12,103.20147774]
[1746594989899,1.0,146.13,146.12,62.15147774]
[1746594992820,1.0,146.13,146.12,55.98127774]
[1746594998931,1.0,146.17,146.16,44.64964886]
[1746594999145,1.0,146.17,146.16,89.62336483]
[1746595000135,1.0,146.17,146.16,56.4457772]
[1746595001233,1.0,146.17,146.16,96.36302044]
[1746595010453,1.0,146.17,146.16,81.93724324]
[1746595010615,1.0,146.17,146.16,63.28759438]
[1746595012140,1.0,146.17,146.16,14.4257772]
[1746595012938,1.0,146.17,146.15,6.8421676]
[1746595012939,1.0,146.17,146.14,14.4257772]
[1746595013148,15.4257772,146.17,146.13,37.24893641]
[1746595013925,1.0,146.17,146.14,14.4257772]
[1746595017048,22.26735423,146.17,146.13,30.4057772]
[1746595017232,14.4257772,146.16,146.13,15.98]
[1746595019251,22.26735423,146.17,146.13,15.98]
[1746595019755,5.09419623,146.16,146.13,30.4057772]
[1746595020250,5.09419623,146.16,146.13,14.4257772]
[1746595020430,22.26735423,146.17,146.13,14.4257772]
[1746595021734,22.26735423,146.17,146.11,14.4257772]
[1746595021735,14.4257772,146.15,146.11,14.4257772]
[1746595021937,14.4257772,146.15,146.1,15.98]
[1746595021938,14.4257772,146.14,146.1,30.4057772]
[1746595022123,137.7,146.16,146.11,14.4257772]
[1746595022329,152.1257772,146.16,146.12,14.4257772]
[1746595023629,5.09714689,146.15,146.12,14.4257772]
[1746595024153,5.09714689,146.15,146.13,14.4257772]
[1746595024528,137.7,146.16,146.13,14.4257772]
[1746595024727,1.0,146.17,146.15,14.4257772]
[1746595024928,1.0,146.17,146.16,14.4257772]
[1746595025759,1.0,146.17,146.16,21.26759438]
[1746595025965,1.0,146.17,146.14,21.26853072]
[1746595026456,1.0,146.17,146.15,14.4257772]
[1746595026643,1.0,146.17,146.16,14.4257772]
[1746595028256,1.0,146.17,146.16,21.26759438]
[1746595033674,1.0,146.17,146.16,6.84181718]
[1746595033968,1.0,146.17,146.15,30.4057772]
[1746595033969,1.0,146.17,146.15,21.26790377]
[1746595034745,1.0,146.17,146.15,6.84212657]
[1746595036271,1.0,146.17,146.15,14.4257772]
[1746595038465,1.0,146.17,146.16,6.84181718]
[1746595038953,1.0,146.17,146.15,21.26792401]
[1746595041571,2.0,146.17,146.15,21.26792401]
[1746595042872,2.0,146.17,146.16,14.4257772]
[1746595044780,2.0,146.17,146.16,35.69337158]
[1746595045075,2.0,146.17,146.16,21.26759438]
[1746595048401,2.0,146.17,146.16,35.69337158]
[1746595048562,2.0,146.17,146.16,54.34302044]
[1746595050046,2.0,146.17,146.16,21.26759438]
[1746595050474,2.0,146.17,146.14,14.4257772]
[1746595051879,2.0,146.17,146.14,21.26816514]
[1746595052886,2.0,146.17,146.15,14.4257772]
[1746595054882,16.4257772,146.17,146.13,37.20887001]
[1746595055379,2.0,146.17,146.14,14.4257772]
[1746595055588,2.0,146.17,146.13,22.78309281]
[1746595055589,2.0,146.17,146.15,14.4257772]
[1746595056290,2.0,146.17,146.15,21.267998]
[1746595056761,2.0,146.17,146.16,14.4257772]
[1746595057659,2.0,146.17,146.15,6.8422208]
[1746595058783,2.0,146.17,146.15,21.267998]
[1746595066597,2.0,146.17,146.15,14.4257772]
[1746595066888,23.26715313,146.17,146.13,30.3657772]
[1746595067077,14.4257772,146.16,146.13,15.94]
[1746595068702,5.10345838,146.15,146.13,15.94]
[1746595068893,5.10345838,146.15,146.12,21.26932286]
[1746595069706,5.10345838,146.14,146.12,21.26932286]
[1746595069886,5.10345838,146.14,146.12,6.84354566]
[1746595070083,19.52923558,146.14,146.1,14.4257772]
[1746595070283,5.10345838,146.14,146.1,14.4257772]
[1746595071089,5.10345838,146.13,146.1,14.4257772]
[1746595071778,5.10345838,146.13,146.1,21.27023862]
[1746595071979,6.75245838,146.13,146.1,14.4257772]
[1746595072382,5.10345838,146.12,146.1,14.4257772]
[1746595073404,5.10345838,146.12,146.11,14.4257772]
[1746595077999,5.10345838,146.12,146.1,21.27012325]
[1746595079204,21.26860378,146.14,146.1,21.27012325]
[1746595079503,21.26860378,146.14,146.1,14.4257772]
[1746595079812,14.4257772,146.14,146.1,21.27028218]
[1746595080703,5.0912238,146.13,146.1,21.27028218]
[1746595080885,5.0912238,146.13,146.11,14.4257772]
[1746595081780,5.0912238,146.12,146.11,14.4257772]
[1746595082612,47.26827782,146.15,146.11,14.4257772]
[1746595083713,5.09325027,146.14,146.11,14.4257772]
[1746595085006,5.09325027,146.13,146.11,21.26992638]
[1746595085307,5.09325027,146.13,146.12,14.4257772]
[1746595086113,5.09325027,146.13,146.11,21.26992638]
[1746595086909,5.09325027,146.13,146.1,21.27019848]
[1746595087110,21.26857995,146.14,146.1,14.4257772]
[1746595088121,47.26822678,146.15,146.1,21.27037926]
[1746595090718,5.09489284,146.14,146.1,21.27037926]
[1746595091021,11.93779095,146.14,146.1,14.4257772]
[1746595091210,14.4257772,146.13,146.09,15.94]
[1746595091414,14.4257772,146.12,146.09,15.94]
[1746595091616,14.4257772,146.12,146.08,14.4257772]
[1746595092107,5.09489284,146.11,146.08,21.27132048]
[1746595092309,5.09489284,146.11,146.09,14.4257772]
[1746595093125,14.4257772,146.13,146.09,14.4257772]
[1746595093630,14.4257772,146.13,146.09,21.27076162]
[1746595094007,5.09703266,146.12,146.09,21.27076162]
[1746595095032,5.09703266,146.11,146.09,14.4257772]
[1746595095725,21.26918793,146.13,146.07,6.84589943]
[1746595095726,5.09703266,146.1,146.07,6.84589943]
[1746595095933,5.09703266,146.1,146.08,14.4257772]
[1746595096926,16.0723772,146.12,146.08,14.4257772]
[1746595097726,10.89249042,146.12,146.08,9.24589042]
[1746595097935,5.09936227,146.11,146.08,9.24589042]
[1746595098117,5.09936227,146.11,146.09,9.24589042]
[1746595099035,5.09936227,146.11,146.1,9.24589042]
[1746595099227,137.7,146.14,146.1,9.24589042]
[1746595099430,137.7,146.14,146.11,9.24589042]
[1746595100118,5.100369,146.13,146.11,9.24589042]
[1746595100735,5.100369,146.13,146.1,9.24589042]
[1746595100968,9.24589042,146.12,146.08,25.20589042]
[1746595101114,9.24589042,146.11,146.07,16.09163819]
[1746595102319,5.10023209,146.1,146.07,16.09163819]
[1746595102714,5.10023209,146.1,146.07,9.24589042]
[1746595102917,5.10023209,146.1,146.08,9.24589042]
[1746595103325,155.32089524,146.12,146.08,9.24589042]
[1746595104031,156.32089524,146.12,146.08,9.24589042]
[1746595104433,5.10108986,146.11,146.08,9.24589042]
[1746595105644,5.10108986,146.1,146.08,9.24589042]
[1746595106019,5.10108986,146.1,146.08,16.09143275]
[1746595106529,5.10108986,146.1,146.09,9.24589042]
[1746595108142,5.10108986,146.1,146.08,16.09143275]
[1746595109037,156.32084146,146.12,146.08,9.24589042]
[1746595109754,156.32084146,146.12,146.07,16.09174262]
[1746595110243,158.89645715,146.11,146.07,9.24589042]
[1746595110419,158.89645715,146.11,146.06,16.09219083]
[1746595110841,9.24589042,146.1,146.06,16.09219083]
[1746595111145,5.10636342,146.09,146.06,16.09219083]
[1746595112349,5.10636342,146.09,146.07,9.24589042]
[1746595112532,5.10636342,146.08,146.07,9.24589042]
[1746595115960,5.10636342,146.08,146.07,16.09192314]
[1746595120353,9.24589042,146.1,146.06,16.0919534]
[1746595120938,146.94589042,146.11,146.07,9.24589042]
[1746595121149,5.10877519,146.09,146.07,9.24589042]
[1746595121938,5.10877519,146.08,146.07,16.09192314]
[1746595123473,5.10877519,146.08,146.07,9.24589042]
[1746595125662,5.10877519,146.08,146.07,16.09192314]
[1746595127069,5.10877519,146.08,146.07,6.84603272]
[1746595127564,5.10877519,146.08,146.07,16.09192314]
[1746595129747,5.10877519,146.08,146.07,6.84603272]
[1746595129950,5.10877519,146.08,146.07,16.09192314]
[1746595139672,5.10877519,146.08,146.07,9.24589042]
[1746595140464,5.10877519,146.08,146.05,15.96]
[1746595140671,5.10877519,146.08,146.07,9.24589042]
[1746595142148,5.10877519,146.08,146.07,16.09192314]
[1746595145986,27.0,146.12,146.07,16.09192314]
[1746595146174,27.0,146.12,146.11,9.24589042]
[1746595146972,32.1164234,146.12,146.11,9.24589042]
[1746595148060,6.1164234,146.12,146.11,9.24589042]
[1746595148369,6.1164234,146.12,146.11,16.09004893]
[1746595151487,6.1164234,146.12,146.11,32.01004893]
[1746595151859,6.1164234,146.12,146.11,50.65969779]
[1746595152256,1.0,146.12,146.11,50.65969779]
[1746595152779,2.0,146.17,146.11,93.77009406]
[1746595152962,2.0,146.17,146.16,9.24589042]
[1746595156180,2.0,146.17,146.16,16.0877076]
[1746595157581,2.0,146.17,146.16,53.07126928]
[1746595157771,2.0,146.17,146.16,68.99126928]
[1746595162160,2.0,146.17,146.16,15.92]
[1746595162381,2.0,146.17,146.16,25.16589042]
[1746595162780,2.0,146.17,146.16,32.0077076]
[1746595163685,2.0,146.17,146.16,25.16589042]
[1746595166875,3.0,146.17,146.16,25.16589042]
[1746595167388,9.8414485,146.17,146.15,9.24589042]
[1746595169585,3.0,146.17,146.15,9.24589042]
[1746595169771,3.0,146.17,146.15,14.43448248]
[1746595171994,3.0,146.17,146.16,14.43448248]
[1746595174100,3.0,146.17,146.16,21.27629966]
[1746595176900,3.0,146.17,146.16,14.43448248]
[1746595182202,3.0,146.17,146.15,14.43448248]
[1746595182402,3.0,146.17,146.16,14.43448248]
[1746595184201,3.0,146.17,146.16,21.27629966]
[1746595195833,3.0,146.17,146.16,35.71078214]
[1746595197554,3.0,146.17,146.16,21.27629966]
[1746595201752,3.0,146.17,146.16,16.07468312]
[1746595204448,3.0,146.17,146.16,31.99468312]
[1746595204622,3.0,146.17,146.16,87.57579574]
[1746595207049,3.0,146.17,146.16,113.71795731]
[1746595207263,17.08708452,146.31,146.22,9.23286594]
[1746595207264,139.3065,146.27,146.22,9.23286594]
[1746595207429,139.3065,146.27,146.25,9.23286594]
[1746595207936,1.6065,146.27,146.25,9.23286594]
[1746595208753,1.6065,146.27,146.25,16.07009846]
[1746595209051,1.6065,146.27,146.24,6.83789952]
[1746595209745,1.6065,146.27,146.24,21.25486549]
[1746595213756,152.11696597,146.29,146.25,14.41696597]
[1746595215454,152.11696597,146.29,146.25,21.25419645]
[1746595215632,137.7,146.29,146.26,14.41696597]
[1746595216151,42.02566597,146.3,146.26,14.41696597]
[1746595216152,1.6087,146.3,146.26,14.41696597]
[1746595216457,1.6087,146.3,146.27,14.41696597]
[1746595217457,137.7,146.32,146.29,14.41696597]
[1746595217653,152.11696597,146.32,146.28,21.2531705]
[1746595218632,137.7,146.32,146.28,21.2531705]
[1746595218836,152.11696597,146.32,146.28,21.2531705]
[1746595219157,137.7,146.32,146.29,14.41696597]
[1746595219644,137.7,146.32,146.3,14.41696597]
[1746595220256,152.11696597,146.32,146.27,6.8366719]
[1746595220459,152.11696597,146.32,146.27,21.25363787]
[1746595220840,158.95148714,146.32,146.27,14.41696597]
[1746595221031,14.41696597,146.31,146.26,37.17390512]
[1746595222353,14.41696597,146.3,146.26,37.17390512]
[1746595222561,15.99746597,146.29,146.22,41.9]
[1746595222741,15.99746597,146.29,146.25,14.41696597]
[1746595224065,1.5805,146.29,146.26,14.41696597]
[1746595225568,1.5805,146.29,146.26,21.25373757]
[1746595229280,2.5805,146.29,146.26,21.25373757]
[1746595230250,2.5805,146.29,146.25,21.25443543]
[1746595233272,9.41632773,146.29,146.25,14.41696597]
[1746595233462,23.8332937,146.29,146.25,14.41696597]
[1746595233766,14.41696597,146.28,146.23,14.41696597]
[1746595233977,14.41696597,146.27,146.23,14.41696597]
[1746595234200,14.41696597,146.27,146.23,21.2554199]
[1746595234345,152.11696597,146.28,146.24,14.41696597]
[1746595234975,14.41696597,146.27,146.23,14.41696597]
[1746595235348,21.25366248,146.27,146.23,14.41696597]
[1746595235568,21.25366248,146.27,146.23,21.25550649]
[1746595235968,21.25366248,146.27,146.23,14.41696597]
[1746595237187,14.41696597,146.27,146.23,14.41696597]
[1746595237483,14.41696597,146.27,146.23,21.25542915]
[1746595241776,21.25364449,146.27,146.23,14.41696597]
[1746595241991,14.41696597,146.26,146.21,21.2561882]
[1746595242292,14.41696597,146.24,146.2,21.25671122]
[1746595242882,144.53746655,146.26,146.21,14.41696597]
[1746595243179,158.95443252,146.26,146.22,14.41696597]
[1746595243384,158.95443252,146.26,146.21,14.41696597]
[1746595243684,158.95443252,146.26,146.2,6.83974525]
[1746595243985,14.41696597,146.25,146.21,14.41696597]
[1746595247185,14.41696597,146.25,146.21,21.25633684]
[1746595248788,14.41696597,146.24,146.19,6.84041316]
[1746595249085,14.41696597,146.24,146.21,14.41696597]
[1746595249468,14.41696597,146.24,146.19,6.84041316]
[1746595249783,14.41696597,146.24,146.2,14.41696597]
[1746595250283,14.41696597,146.24,146.19,6.84041316]
[1746595250479,14.41696597,146.24,146.2,14.41696597]
[1746595250682,14.41696597,146.24,146.2,21.2567068]
[1746595251567,21.25511587,146.24,146.2,21.2567068]
[1746595251901,14.41696597,146.23,146.19,21.2571642]
[1746595254284,22.76905482,146.24,146.2,14.41696597]
[1746595258293,22.76905482,146.24,146.2,21.2568708]
[1746595260290,14.41696597,146.23,146.19,21.25722111]
[1746595261597,22.76905482,146.24,146.2,14.41696597]
[1746595262294,1.5139,146.24,146.2,21.25675118]
[1746595262495,178.11696597,146.25,146.21,14.41696597]
[1746595263497,178.11696597,146.25,146.21,21.25632399]
[1746595265776,163.7,146.25,146.22,9.22861112]
[1746595266700,137.7,146.25,146.22,16.06724644]
[1746595267082,137.7,146.25,146.22,6.83863532]
[1746595267700,26.0,146.26,146.22,6.83863532]
[1746595267996,35.22861112,146.26,146.22,16.06724644]
[1746595268172,26.0,146.26,146.22,16.06724644]
[1746595268499,35.22861112,146.26,146.22,16.06724644]
[1746595269081,9.22861112,146.26,146.22,16.06724644]
[1746595271498,9.22861112,146.26,146.22,6.83863532]
[1746595271680,9.22861112,146.25,146.21,16.06793243]
[1746595275403,144.53741576,146.26,146.21,16.06793243]
[1746595275601,137.7,146.26,146.22,9.22861112]
[1746595275815,137.7,146.26,146.23,9.22861112]
[1746595276521,137.7,146.26,146.23,16.06692975]
[1746595277820,146.92861112,146.26,146.23,6.83831863]
[1746595279114,137.7,146.26,146.23,6.83831863]
[1746595279434,137.7,146.26,146.21,23.93817111]
[1746595279729,137.7,146.26,146.22,9.22861112]
[1746595280723,173.92861112,146.29,146.24,9.22861112]
[1746595281437,173.92861112,146.29,146.25,16.06598443]
[1746595281805,173.92861112,146.29,146.25,6.83737331]
[1746595282007,9.22861112,146.28,146.25,6.83737331]
[1746595282235,164.7,146.29,146.25,6.83737331]
[1746595282534,9.22861112,146.28,146.25,6.83737331]
[1746595283920,173.92861112,146.29,146.25,16.06598443]
[1746595289732,173.92861112,146.29,146.25,6.83737331]
[1746595289934,9.22861112,146.28,146.25,6.83737331]
[1746595298470,9.22861112,146.28,146.24,16.06647574]
[1746595298764,9.22861112,146.27,146.24,6.83786462]